bitfinex/quotes_ETHUSD_20241203
["timestamp","ask_amount","ask_price","bid_price","bid_amount"]
[1733262702611,0.20652041,3620.3,3619.8,2.76253]
[1733262702756,1.5728,3620.4,3619.8,2.76253]
[1733262702957,0.20651106,3620.3,3619.5,1.5003]
[1733262703156,1.5728,3620.4,3620.0,2.76242]
[1733262703368,1.5728,3620.4,3619.8,2.76255]
[1733262703369,0.20646755,3620.3,3619.8,2.76255]
[1733262703574,1.5728,3620.4,3619.8,2.76255]
[1733262704116,0.20646844,3620.3,3619.9,2.76246]
[1733262704414,2.50071307,3620.5,3620.2,2.76225]
[1733262704785,0.20642777,3620.4,3620.2,2.76225]
[1733262705092,2.50071307,3620.5,3620.2,2.76225]
[1733262705293,0.20642533,3620.4,3620.2,2.76225]
[1733262705480,2.50071307,3620.5,3620.2,2.76223]
[1733262705809,2.50071307,3620.5,3620.2,2.76221]
[1733262705964,2.50071307,3620.5,3620.3,2.76218]
[1733262706161,2.50071307,3620.5,3619.6,0.15003]
[1733262706377,1.5663,3620.7,3620.4,2.76212]
[1733262708544,1.5663,3620.7,3620.2,2.7622]
[1733262708754,1.5663,3620.7,3620.3,2.76217]
[1733262709741,2.50071307,3620.5,3619.8,1.5229]
[1733262709898,2.50071307,3620.5,3620.2,2.76224]
[1733262710598,2.50071307,3620.5,3620.3,2.76216]
[1733262712053,2.50071307,3620.5,3619.8,1.5229]
[1733262712388,2.50071307,3620.5,3619.9,2.76248]
[1733262712540,4.05421307,3620.1,3619.7,2.76259]
[1733262715144,4.05421307,3620.1,3619.8,2.76257]
[1733262716036,4.05421307,3620.1,3619.7,2.76264]
[1733262717954,4.05421307,3620.1,3619.5,2.76279]
[1733262719006,4.05421307,3620.1,3619.2,1.507]
[1733262719327,4.05421307,3620.1,3619.4,2.76285]
[1733262720178,4.05421307,3620.1,3619.5,2.76278]
[1733262720589,4.05421307,3620.1,3619.6,2.76273]
[1733262722119,4.05421307,3620.1,3619.7,2.76265]
[1733262722427,4.05421307,3620.1,3619.5,2.76278]
[1733262722606,4.05421307,3620.1,3619.2,1.70937742]
[1733262722815,4.05421307,3620.1,3619.7,2.76264]
[1733262723316,4.05421307,3620.1,3619.2,4.47237742]
[1733262723495,4.05421307,3620.1,3619.2,1.507]
[1733262723821,1.5728,3619.6,3619.2,2.76297]
[1733262724045,1.5728,3619.6,3619.0,2.76318]
[1733262724329,1.5728,3619.6,3619.1,2.76309]
[1733262725702,1.5728,3619.6,3619.4,2.76281]
[1733262726488,1.5728,3620.0,3619.5,2.76281]
[1733262727163,0.20673971,3619.9,3619.5,2.76281]
[1733262727364,1.5728,3620.0,3619.5,2.76281]
[1733262727677,0.20677478,3619.9,3619.5,2.76281]
[1733262727978,1.5728,3620.0,3619.5,2.76281]
[1733262728277,0.20677378,3619.9,3619.5,2.76281]
[1733262728495,0.20677378,3619.8,3619.5,2.76281]
[1733262728688,1.5728,3620.0,3619.6,2.76272]
[1733262728986,0.20678367,3619.9,3619.6,2.76272]
[1733262729186,1.5728,3620.0,3619.6,2.76272]
[1733262729338,0.2068028,3619.9,3619.6,2.76272]
[1733262729539,1.5728,3620.0,3619.6,2.76272]
[1733262730086,0.20680391,3619.9,3619.6,2.76272]
[1733262730297,1.5728,3620.0,3619.6,2.76272]
[1733262730500,0.2067979,3619.9,3619.6,2.76272]
[1733262730693,1.5728,3620.0,3619.4,2.76285]
[1733262730895,0.2067997,3619.9,3619.4,2.76285]
[1733262731062,1.5728,3620.0,3619.4,2.76285]
[1733262731391,0.20679149,3619.9,3619.4,2.76285]
[1733262731605,1.5728,3620.0,3619.4,2.76285]
[1733262731747,0.20679221,3619.9,3619.5,2.76279]
[1733262731953,1.5509,3619.8,3619.5,2.76279]
[1733262732194,1.5509,3619.8,3619.3,2.76295]
[1733262732356,1.5509,3619.8,3619.4,2.76287]
[1733262732780,1.5509,3619.8,3619.1,2.76311]
[1733262732973,1.5509,3619.8,3619.2,1.5045]
[1733262733162,1.5509,3619.8,3619.3,2.76294]
[1733262733365,2.1245693,3620.5,3619.2,4.26749]
[1733262733573,0.7960634,3620.4,3619.9,2.76249]
[1733262733877,0.20676971,3620.3,3619.9,2.76249]
[1733262734084,2.50071307,3620.4,3619.6,2.76268]
[1733262734286,2.50071307,3620.4,3619.3,0.5148132]
[1733262734287,1.556,3620.3,3619.3,0.5148132]
[1733262734489,0.20675857,3620.2,3619.2,1.5045]
[1733262734687,0.20675857,3620.1,3619.3,0.17892581]
[1733262734996,1.556,3620.3,3619.3,0.17892581]
[1733262735207,0.20676602,3620.2,3619.7,2.76264]
[1733262735371,0.20676602,3620.1,3619.7,2.76264]
[1733262735558,1.556,3620.3,3619.7,2.76264]
[1733262735761,0.20677103,3620.2,3619.7,2.76264]
[1733262735960,0.20677103,3620.1,3619.7,2.76264]
[1733262736206,1.556,3620.3,3619.7,2.76264]
[1733262736359,0.20679032,3620.2,3619.7,2.76264]
[1733262736559,1.556,3620.3,3619.7,2.76264]
[1733262736560,0.20679032,3620.1,3619.7,2.76264]
[1733262736909,1.556,3620.3,3619.7,2.76264]
[1733262737202,0.20679437,3620.2,3619.7,2.76264]
[1733262737509,0.20679437,3620.1,3619.7,2.76264]
[1733262737709,0.20679437,3620.0,3619.7,2.76264]
[1733262737905,1.556,3620.3,3619.7,2.76264]
[1733262738105,0.20683436,3620.2,3619.7,2.76264]
[1733262738309,0.20683436,3620.1,3619.7,2.76264]
[1733262738609,1.556,3620.3,3619.7,2.76264]
[1733262738817,0.20685649,3620.2,3619.4,2.76288]
[1733262739109,1.556,3620.3,3619.9,2.7625]
[1733262739260,0.20687092,3620.2,3619.9,2.7625]
[1733262739466,1.556,3620.3,3619.9,2.7625]
[1733262739666,0.20687091,3620.2,3619.9,2.7625]
[1733262739902,1.556,3620.3,3619.9,2.7625]
[1733262740107,0.20687228,3620.2,3620.0,2.7624]
[1733262740306,1.556,3620.3,3620.0,2.7624]
[1733262740475,1.556,3620.3,3619.4,0.45521381]
[1733262740476,0.20688985,3620.2,3619.6,2.76273]
[1733262740809,1.556,3620.3,3620.1,2.76235]
[1733262741217,1.556,3620.3,3619.7,2.76262]
[1733262741507,0.20689396,3620.2,3619.7,2.76262]
[1733262741714,1.556,3620.3,3620.0,2.76236]
[1733262742216,1.556,3620.3,3619.7,2.76262]
[1733262742394,1.556,3620.3,3620.1,2.7623]
[1733262742707,0.20689483,3620.2,3620.1,2.7623]
[1733262742870,1.556,3620.3,3620.1,2.7623]
[1733262743069,1.556,3620.3,3619.7,0.32468844]
[1733262743393,0.2069106,3620.2,3620.0,2.76242]
[1733262743596,1.556,3620.3,3620.0,2.76242]
[1733262743796,0.20690264,3620.2,3620.0,2.76242]
[1733262743995,1.556,3620.3,3620.0,2.76242]
[1733262744312,0.20690248,3620.2,3620.0,2.76242]
[1733262744602,1.556,3620.3,3620.0,2.76242]
[1733262744803,1.556,3620.3,3619.7,0.32468844]
[1733262744804,0.20690026,3620.2,3620.1,2.76235]
[1733262745418,0.20688128,3620.2,3620.1,2.76235]
[1733262745778,1.5728,3620.5,3620.3,2.76218]
[1733262745979,0.20687644,3620.4,3620.3,2.76218]
[1733262749595,1.41587676,3620.4,3620.3,2.76218]
[1733262749905,0.20687644,3620.4,3620.3,2.76218]
[1733262750138,1.5291,3620.9,3620.3,3.314637]
[1733262750427,0.20677489,3620.8,3620.7,2.76182]
[1733262751211,1.5728,3621.5,3621.4,2.76136]
[1733262751521,1.5728,3621.7,3621.6,2.76121]
[1733262751727,1.53963281,3621.7,3621.6,2.76121]
[1733262751939,0.20663652,3621.7,3621.6,2.76121]
[1733262752074,1.5222,3622.2,3622.0,2.76084]
[1733262752280,1.5222,3622.2,3621.5,1.5657]
[1733262752281,1.41562078,3622.1,3621.8,2.76098]
[1733262752478,0.20662046,3622.0,3621.9,2.76098]
[1733262752731,1.20900032,3622.1,3621.9,2.76098]
[1733262753308,1.20900032,3622.1,3622.0,2.7609]
[1733262753675,4.06336903,3622.5,3622.0,2.76085]
[1733262754017,0.20620382,3622.4,3622.0,2.76085]
[1733262754177,0.20620382,3622.3,3622.0,2.76085]
[1733262754382,4.06336903,3622.5,3622.0,2.76085]
[1733262754711,0.20606407,3622.4,3622.0,2.76085]
[1733262755021,4.06336903,3622.5,3622.0,2.76085]
[1733262755380,0.20595697,3622.4,3622.0,2.76085]
[1733262755579,4.06336903,3622.5,3622.0,2.76085]
[1733262755897,0.2059554,3622.4,3622.0,2.76085]
[1733262756216,4.06336903,3622.5,3622.0,2.76085]
[1733262756646,0.20587825,3622.4,3622.0,2.76085]
[1733262756799,4.06336903,3622.5,3622.0,2.76085]
[1733262757003,0.2058804,3622.4,3622.0,2.76085]
[1733262757204,4.06336903,3622.5,3622.0,2.76085]
[1733262757901,1.5654,3622.5,3622.0,2.76085]
[1733262758127,2.49796903,3622.1,3622.0,2.76085]
[1733262758716,1.5654,3622.5,3622.0,2.76085]
[1733262758717,2.49796903,3622.5,3622.0,1.812885]
[1733262758917,2.49796903,3622.5,3622.2,2.76073]
[1733262759428,2.49796903,3622.5,3622.0,1.812885]
[1733262759644,2.49796903,3622.5,3622.2,2.76069]
[1733262760004,2.49796903,3622.5,3622.4,2.7606]
[1733262762441,4.07076903,3622.9,3622.4,0.27606]
[1733262762614,4.07076903,3622.9,3622.6,2.7604]
[1733262763315,2.49796903,3622.9,3622.6,2.7604]
[1733262763554,2.49796903,3622.9,3622.7,2.7603]
[1733262764104,2.49796903,3622.9,3622.5,1.5438]
[1733262765406,2.49796903,3622.9,3622.7,2.76036]
[1733262765960,2.49796903,3622.9,3622.1,1.6048]
[1733262766186,2.49796903,3622.2,3622.1,2.76082]
[1733262766814,4.01956903,3622.2,3621.5,1.578]
[1733262767102,4.01956903,3622.2,3621.2,2.7615]
[1733262767103,2.49796903,3621.8,3621.6,2.76119]
[1733262767312,2.49796903,3621.8,3621.3,0.27615]
[1733262767608,2.49796903,3621.8,3621.4,2.76133]
[1733262768882,2.49796903,3621.8,3621.3,0.27615]
[1733262769179,2.49796903,3621.4,3621.1,2.76152]
[1733262770182,2.49796903,3621.4,3621.2,2.76149]
[1733262771934,2.49796903,3621.4,3620.8,2.76178]
[1733262772115,2.49796903,3621.4,3621.2,2.7615]
[1733262772999,2.49796903,3621.4,3620.6,2.76197]
[1733262773183,2.49796903,3621.4,3620.7,0.737857]
[1733262773524,2.49796903,3621.4,3621.1,2.76156]
[1733262774090,2.49796903,3621.4,3621.2,2.7615]
[1733262774918,2.49796903,3621.4,3620.7,0.737857]
[1733262774919,2.49796903,3621.4,3620.9,2.76171]
[1733262775484,2.49796903,3621.4,3621.0,2.76166]
[1733262775959,2.49796903,3621.4,3620.7,0.737857]
[1733262776231,2.49796903,3621.4,3620.5,1.6166]
[1733262776232,2.49796903,3621.4,3621.1,2.76153]
[1733262776393,2.49796903,3621.4,3620.8,0.5116377]
[1733262776394,2.49796903,3621.4,3620.9,2.76174]
[1733262776606,2.49796903,3621.4,3621.3,2.76143]
[1733262776810,2.49796903,3621.8,3621.2,1.5762]
[1733262777014,2.47796903,3621.8,3621.5,2.76125]
[1733262777327,2.47796903,3621.8,3621.6,2.76114]
[1733262777485,2.47796903,3621.8,3621.6,2.76113]
[1733262777688,2.47796903,3621.8,3621.7,2.76113]
[1733262778826,0.13809629,3622.6,3621.7,2.76113]
[1733262778827,0.3299477,3622.5,3622.2,2.7607]
[1733262778982,0.20620981,3622.4,3621.8,1.5026]
[1733262779190,4.07076903,3622.6,3622.3,2.76067]
[1733262779413,4.07076903,3622.6,3622.5,2.76052]
[1733262779625,2.49796903,3622.6,3622.5,2.76052]
[1733262779801,2.70426358,3622.6,3622.5,2.76052]
[1733262780501,2.70426358,3622.6,3622.1,2.76078]
[1733262780721,0.20629455,3622.5,3622.4,2.76053]
[1733262782026,2.49796903,3623.0,3622.9,2.76021]
[1733262782225,2.96242735,3623.0,3622.7,2.76034]
[1733262782393,0.46445572,3622.9,3622.7,2.76034]
[1733262782592,0.20644084,3622.8,3622.7,2.76034]
[1733262783060,0.41285142,3622.8,3622.7,2.76034]
[1733262783270,0.20641058,3622.8,3622.7,2.76034]
[1733262784663,0.20641058,3622.8,3622.6,2.76044]
[1733262784963,0.20641058,3622.8,3622.3,2.7606]
[1733262784964,2.49796903,3622.7,3622.3,2.7606]
[1733262785258,2.49796903,3622.4,3622.3,2.7606]
[1733262785423,2.49796903,3622.4,3622.1,3.187098]
[1733262785767,0.20633832,3622.3,3621.9,2.76091]
[1733262785975,0.20633832,3622.3,3621.5,4.33094]
[1733262785976,2.49796903,3621.9,3621.8,2.76105]
[1733262787362,2.49796903,3621.9,3621.5,4.33091]
[1733262787661,2.49796903,3621.9,3621.2,1.6225]
[1733262787817,4.07076903,3621.9,3621.5,2.76122]
[1733262788017,2.49796903,3621.6,3621.3,0.16225]
[1733262788217,2.49796903,3621.6,3621.3,2.92367]
[1733262788452,2.49796903,3621.6,3621.4,2.76136]
[1733262789171,2.49796903,3621.6,3621.1,2.76158]
[1733262789319,2.49796903,3621.2,3621.1,2.76158]
[1733262789658,2.49796903,3621.2,3621.0,2.76163]
[1733262789823,2.49796903,3621.1,3621.0,2.76163]
[1733262791334,2.49796903,3621.1,3620.8,2.76182]
[1733262791528,1.5728,3621.3,3620.8,2.76182]
[1733262791529,2.49796903,3620.9,3620.8,2.76182]
[1733262794428,1.82448403,3620.9,3620.8,2.76182]
[1733262796551,1.82448403,3620.9,3620.2,1.5719]
[1733262796873,1.5728,3621.3,3620.2,1.5719]
[1733262796874,2.49796903,3620.3,3620.2,1.5719]
[1733262797240,2.49796903,3620.3,3620.2,4.81078582]
[1733262799868,2.49796903,3620.8,3620.7,2.76189]
[1733262801675,2.49796903,3621.2,3621.0,2.76159]
[1733262801971,2.49796903,3621.2,3620.8,4.32502]
[1733262802189,2.49796903,3621.2,3621.1,2.76159]
[1733262803664,2.49796903,3621.2,3620.9,2.76171]
[1733262804043,2.49796903,3621.2,3620.8,1.5632]
[1733262804244,2.49796903,3621.2,3621.0,2.76165]
[1733262805245,2.49796903,3621.2,3620.5,2.76198]
[1733262805246,2.49796903,3621.2,3620.5,4.38258]
[1733262805449,2.49796903,3621.2,3620.8,2.76175]
[1733262805974,2.49796903,3621.2,3620.9,2.76171]
[1733262806279,2.49796903,3621.2,3620.5,2.058858]
[1733262806452,2.49796903,3621.2,3621.1,2.76159]
[1733262808887,2.49796903,3621.2,3620.6,2.76193]
[1733262809049,2.49796903,3621.2,3620.9,2.7617]
[1733262809576,2.49796903,3621.2,3620.7,0.4820788]
[1733262809781,2.49796903,3621.2,3621.1,2.76159]
[1733262809995,2.49796903,3621.2,3621.1,4.33679]
[1733262814585,2.49796903,3621.8,3621.2,2.76146]
[1733262814829,0.20648899,3621.7,3621.6,4.34791]
[1733262815036,2.49796903,3621.8,3621.6,4.34791]
[1733262815037,2.49796903,3621.8,3621.7,2.76113]
[1733262816038,2.49796903,3622.2,3621.6,1.5867]
[1733262816187,2.49796903,3622.2,3622.1,2.76082]
[1733262816382,2.70454965,3622.2,3622.1,2.76082]
[1733262817417,2.70455461,3622.2,3622.1,2.76082]
[1733262821026,1.5196,3622.1,3621.8,2.76101]
[1733262821234,2.49796903,3621.9,3621.3,1.6028]
[1733262821525,1.5196,3622.1,3621.4,2.76136]
[1733262821526,2.49796903,3621.5,3621.4,2.76136]
[1733262826842,2.70450164,3621.5,3621.4,2.76136]
[1733262829190,3.03511429,3621.5,3621.4,2.76136]
[1733262829604,2.70450164,3621.5,3621.4,2.76136]
[1733262830098,3.03511178,3621.5,3621.4,2.76136]
[1733262831870,2.70450164,3621.5,3621.4,2.76136]
[1733262832052,3.03518154,3621.5,3621.4,2.76136]
[1733262833054,2.49796903,3621.5,3621.4,2.76136]
[1733262833411,3.0353471,3621.5,3621.4,2.76136]
[1733262835581,3.29373344,3621.5,3621.4,2.76136]
[1733262835779,3.0353471,3621.5,3621.4,2.76136]
[1733262836072,2.49796903,3621.5,3621.4,2.76136]
[1733262837262,2.7046873,3621.5,3621.4,2.76136]
[1733262837463,3.03543499,3621.5,3621.4,2.76136]
[1733262838920,3.29385413,3621.5,3621.4,2.76136]
[1733262839477,3.70735037,3621.5,3621.4,2.76136]
[1733262840459,3.29385413,3621.5,3621.4,2.76136]
[1733262841040,3.29388145,3621.5,3621.4,2.76136]
[1733262841736,3.29388145,3621.5,3621.4,4.29966]
[1733262842268,3.29388145,3621.5,3621.4,2.76136]
[1733262843562,2.0042513,3621.5,3621.4,2.76136]
[1733262844631,2.0042513,3621.5,3621.4,3.50509]
[1733262845166,1.74580484,3621.5,3621.4,3.50509]
[1733262845370,1.67350201,3621.5,3621.4,3.50509]
[1733262845724,1.41505715,3621.5,3621.4,3.50509]
[1733262846356,0.4651864,3621.5,3621.4,3.50509]
[1733262846670,8.27e-06,3621.5,3621.4,5.17169]
[1733262846853,1.20833888,3622.2,3622.1,2.76082]
[1733262847022,2.34922356,3622.2,3622.1,2.76082]
[1733262847668,0.58926992,3622.2,3622.1,2.76082]
[1733262847966,0.58928477,3622.2,3622.1,3.47966]
[1733262848164,0.25845172,3622.2,3622.1,3.47966]
[1733262849125,0.25845172,3622.2,3622.1,2.76082]
[1733262849326,2.70789991,3622.2,3622.1,2.76082]
[1733262849525,1.00270801,3622.2,3622.1,2.76082]
[1733262849724,1.00269592,3622.2,3622.1,2.76082]
[1733262850948,2.09788769,3622.2,3622.0,2.7609]
[1733262851153,5.0733102,3622.1,3621.8,2.76104]
[1733262851342,2.49781428,3621.9,3621.8,2.76104]
[1733262851546,3.08704478,3621.9,3621.8,2.76104]
[1733262851741,3.50061939,3621.9,3621.8,2.76104]
[1733262851983,3.63872317,3621.9,3621.8,2.76104]
[1733262852284,3.50061939,3621.9,3621.8,2.76104]
[1733262852491,3.63872505,3621.9,3621.8,2.76104]
[1733262852778,3.63872424,3621.9,3621.8,2.76104]
[1733262853083,3.63872491,3621.9,3621.8,2.76104]
[1733262853285,3.50061939,3621.9,3621.8,2.76104]
[1733262853641,3.63872508,3621.9,3621.8,2.76104]
[1733262854381,3.22515047,3621.9,3621.8,2.76104]
[1733262854542,3.08704478,3621.9,3621.8,2.76104]
[1733262854888,2.75628314,3621.9,3621.8,2.76104]
[1733262855186,3.0871532,3621.9,3621.8,2.76104]
[1733262855392,3.50073743,3621.9,3621.8,2.76104]
[1733262856588,3.63884526,3621.9,3621.8,2.76104]
[1733262856758,3.50073743,3621.9,3621.8,2.76104]
[1733262857477,3.63884412,3621.9,3621.8,2.61104]
[1733262857677,3.63884329,3621.9,3621.8,2.61104]
[1733262858256,3.50073743,3621.9,3621.8,2.61104]
[1733262858966,3.70752904,3621.9,3621.8,2.61104]
[1733262860314,3.29394481,3621.9,3621.8,2.61104]
[1733262862500,3.43205033,3621.9,3621.8,2.61104]
[1733262862701,3.29394481,3621.9,3621.8,2.61104]
[1733262863868,4.80327422,3621.9,3621.8,2.61104]
[1733262864076,3.43205038,3621.9,3621.8,2.61104]
[1733262864393,4.80329221,3621.9,3621.8,2.61104]
[1733262864559,4.97592593,3621.9,3621.8,2.61104]
[1733262864758,4.97592308,3621.9,3621.8,2.61104]
[1733262865211,4.80329221,3621.9,3621.8,2.61104]
[1733262865359,4.80334658,3621.9,3621.8,2.61104]
[1733262865580,3.8456418,3621.9,3621.8,2.61104]
[1733262865774,3.70753918,3621.9,3621.8,2.61104]
[1733262866191,4.66533791,3621.9,3621.8,2.61104]
[1733262866715,4.8034414,3621.9,3621.8,2.61104]
[1733262868293,4.66533791,3621.9,3621.8,2.61104]
[1733262868477,4.66543587,3621.9,3621.8,2.61104]
[1733262868888,6.24044592,3621.9,3621.8,2.61104]
[1733262869181,4.66554616,3621.9,3621.8,2.61104]
[1733262869380,4.66556702,3621.9,3621.8,2.61104]
[1733262869577,2.0043396,3621.9,3621.8,2.61104]
[1733262870424,2.41796647,3621.9,3621.8,2.61104]
[1733262870639,2.0043396,3621.9,3621.8,2.61104]
[1733262871619,2.0043396,3621.9,3621.8,3.30412909]
[1733262871995,1.6734445,3621.9,3621.8,3.30412909]
[1733262872425,1.6734445,3621.9,3621.8,2.61104]
[1733262872632,2.00432855,3621.9,3621.8,2.61104]
[1733262872939,2.96222598,3621.9,3621.8,2.61104]
[1733262873144,3.10032553,3621.9,3621.8,2.61104]
[1733262873449,3.24158731,3621.9,3621.8,2.61104]
[1733262873649,2.14559033,3621.9,3621.8,2.61104]
[1733262873943,1.73192855,3621.9,3621.8,2.61104]
[1733262874355,2.14556906,3621.9,3621.8,2.61104]
[1733262877749,2.14556906,3621.9,3621.5,0.0422209]
[1733262877938,0.74452456,3621.8,3621.7,2.76106]
[1733262878246,1.95264784,3621.8,3621.5,0.0422209]
[1733262878459,1.20812328,3621.8,3621.7,2.76113]
[1733262878743,1.95302251,3621.8,3621.7,2.76113]
[1733262879855,1.95314146,3621.8,3621.7,2.76113]
[1733262880203,1.95314146,3621.8,3621.6,2.76118]
[1733262880447,0.74501818,3621.7,3621.6,2.76118]
[1733262880664,0.74501818,3621.7,3621.5,0.0422209]
[1733262880863,1.53930855,3621.6,3621.5,2.8034809]
[1733262881162,1.20812328,3621.6,3621.5,2.8034809]
[1733262881329,1.95346552,3621.6,3621.5,2.8034809]
[1733262882084,1.95347003,3621.6,3621.5,0.0422209]
[1733262882561,1.5393865,3621.6,3621.5,2.8035009]
[1733262883139,1.53939576,3621.6,3621.5,2.8035009]
[1733262885342,2.0052135,3621.6,3621.5,2.8035009]
[1733262886440,2.41926717,3621.6,3621.5,2.8035009]
[1733262886635,1.74642587,3621.6,3621.5,2.8035009]
[1733262886842,2.41925853,3621.6,3621.5,0.0422209]
[1733262888640,3.62738181,3621.6,3621.5,0.0422209]
[1733262888868,5.32182879,3621.6,3621.4,0.0287293]
[1733262889067,1.5218,3621.4,3620.6,2.76194]
[1733262889278,6.33274884,3621.6,3620.6,2.76194]
[1733262889279,1.20812328,3620.7,3620.6,2.76194]
[1733262889486,1.41512693,3620.7,3620.6,2.76194]
[1733262889688,1.67389043,3620.7,3620.6,2.76194]
[1733262890250,1.67389043,3620.7,3620.4,1.93636195]
[1733262890251,1.20812328,3620.7,3620.4,4.69845195]
[1733262890446,1.20812328,3620.5,3620.4,0.43206195]
[1733262890677,1.20812328,3620.5,3620.4,3.19418195]
[1733262897780,1.20812328,3620.5,3620.4,2.76212]
[1733262899475,1.20812328,3620.7,3620.6,2.76196]
[1733262899927,2.78092328,3620.7,3620.0,4.72354972]
[1733262900143,1.20812328,3620.1,3620.0,1.87095972]
[1733262900286,2.41624656,3620.1,3619.6,1.5877]
[1733262900486,1.20812328,3619.8,3619.4,2.76281]
[1733262900822,1.20812328,3619.5,3619.4,4.35051]
[1733262901535,1.20812328,3619.7,3619.6,2.76273]
[1733262901831,1.20812328,3619.9,3619.8,2.76258]
[1733262901984,1.20812328,3619.9,3619.8,4.35048]
[1733262902186,1.5307,3620.7,3619.8,1.5879]
[1733262902417,4.49421342,3621.4,3620.4,2.76212]
[1733262902418,1.20812328,3620.5,3620.4,2.76212]
[1733262902620,1.20812328,3620.5,3620.4,4.33872]
[1733262903196,1.20812328,3620.5,3620.4,2.76212]
[1733262903653,2.74032328,3620.5,3619.8,1.6255]
[1733262903848,1.5322,3620.5,3620.1,2.76234]
[1733262904206,0.20649252,3620.4,3620.1,2.76234]
[1733262904406,1.5322,3620.5,3620.1,2.76234]
[1733262905071,1.5322,3620.5,3620.2,2.76227]
[1733262905698,2.50118718,3620.3,3620.2,2.76227]
[1733262909474,2.50118718,3620.3,3620.1,2.76233]
[1733262909666,2.50118718,3620.3,3620.2,2.76227]
[1733262910157,2.50118718,3620.3,3619.8,1.6255]
[1733262910313,2.50118718,3619.9,3619.8,2.76257]
[1733262910750,4.07398718,3619.9,3619.5,2.76274]
[1733262911358,4.07398718,3619.9,3618.9,2.847661]
[1733262911537,2.50118718,3619.4,3619.3,2.76296]
[1733262913965,2.50118718,3619.4,3619.1,2.76308]
[1733262914168,2.50118718,3619.4,3619.3,2.76296]
[1733262917889,2.50118718,3619.4,3618.9,0.084471]
[1733262917890,1.4233,3619.3,3618.9,0.084471]
[1733262918052,2.50118718,3619.0,3618.9,0.084471]
[1733262918667,2.50118718,3619.0,3618.9,2.847741]
[1733262919080,2.50118718,3619.3,3619.1,2.76308]
[1733262919410,2.50118718,3619.3,3618.9,4.360271]
[1733262919581,2.50118718,3619.3,3618.9,1.597071]
[1733262919762,2.50118718,3619.3,3619.1,2.76311]
[1733262919963,2.50118718,3619.3,3619.2,2.76304]
[1733262920465,2.50118718,3619.3,3618.9,1.597071]
[1733262920693,2.50118718,3619.3,3619.0,2.76319]
[1733262921008,2.50118718,3619.3,3619.1,2.76309]
[1733262923008,2.50118718,3619.3,3619.0,2.76319]
[1733262923190,2.50118718,3619.3,3619.1,2.76311]
[1733262923875,2.50118718,3619.3,3618.9,0.084471]
[1733262924072,2.50118718,3619.3,3618.9,2.847711]
[1733262924384,1.3541,3619.2,3618.9,0.084471]
[1733262925410,2.50118718,3619.0,3618.9,0.084471]
[1733262925712,3.85528718,3619.0,3618.9,0.084471]
[1733262926487,6.35647436,3619.0,3618.9,0.084471]
[1733262926692,6.82079525,3619.0,3618.9,0.084471]
[1733262927287,6.82082654,3619.0,3618.9,0.084471]
[1733262929580,4.23969746,3619.0,3618.9,0.084471]
[1733262930023,4.56986802,3619.0,3618.9,0.084471]
[1733262930383,4.5698143,3619.0,3618.9,0.084471]
[1733262930707,4.23956526,3619.0,3618.9,0.084471]
[1733262932030,4.28613431,3619.0,3618.9,0.084471]
[1733262934126,4.2861197,3619.0,3618.9,0.084471]
[1733262934499,2.9320197,3619.0,3618.0,2.76394]
[1733262934703,1.21062264,3618.1,3618.0,2.76394]
[1733262934998,1.25452996,3618.1,3618.0,2.76394]
[1733262937704,2.4651526,3618.1,3618.0,2.76394]
[1733262937897,2.4651526,3618.1,3617.9,2.76402]
[1733262938098,2.4651526,3618.1,3614.4,33.29554595]
[1733262938099,2.42124528,3618.0,3617.7,2.76415]
[1733262938287,1.21062264,3617.8,3617.7,2.76415]
[1733262938497,1.21062264,3617.8,3617.2,1.6195]
[1733262938705,0.04390732,3617.8,3617.6,2.76423]
[1733262939237,1.21062264,3617.7,3617.6,2.76423]
[1733262939402,1.21062264,3617.7,3617.6,3.04043]
[1733262939615,1.21062264,3617.7,3617.6,2.76423]
[1733262939616,1.2543831,3617.7,3617.6,2.76423]
[1733262940391,1.2543831,3617.7,3617.2,1.6195]
[1733262940615,0.04376046,3617.7,3617.5,2.76427]
[1733262940841,0.04376046,3617.7,3617.2,1.6195]
[1733262940842,1.21062264,3618.0,3617.2,1.6195]
[1733262941028,1.21062264,3618.0,3617.7,2.76412]
[1733262941656,1.3541,3617.7,3617.0,2.76465]
[1733262941940,1.21062264,3618.0,3617.0,2.76469]
[1733262941941,3.77534528,3617.1,3617.0,2.76469]
[1733262942256,2.56472264,3617.1,3617.0,2.76469]
[1733262942550,3.77534528,3617.1,3616.5,2.76508]
[1733262942728,1.21062264,3616.8,3616.7,2.76491]
[1733262942897,2.42124528,3616.8,3616.5,2.76508]
[1733262943097,1.21062264,3616.8,3616.5,2.76508]
[1733262943340,1.21062264,3616.8,3615.6,0.36703372]
[1733262943341,1.21062264,3616.6,3615.7,1.6432]
[1733262943498,1.3541,3616.7,3615.7,1.6432]
[1733262943693,3.861238,3615.9,3615.8,2.76563]
[1733262944004,2.507138,3615.9,3615.8,2.76563]
[1733262944547,2.507138,3616.2,3615.8,2.76563]
[1733262944893,2.507138,3616.2,3615.4,2.9224377]
[1733262944894,5.014276,3616.2,3615.6,2.76576]
[1733262945100,2.507138,3615.7,3615.4,2.9224677]
[1733262945295,2.507138,3615.7,3615.4,0.1565377]
[1733262945502,1.3541,3615.6,3615.5,2.76586]
[1733262945738,2.507138,3615.7,3615.4,0.1565377]
[1733262945919,2.507138,3615.7,3615.6,2.76579]
[1733262949622,2.507138,3615.7,3615.6,4.34159]
[1733262950000,2.507138,3615.7,3615.6,2.76579]
[1733262961284,1.3541,3615.6,3615.4,0.1565377]
[1733262961636,0.04140405,3615.5,3615.4,0.1565377]
[1733262961935,0.57574,3615.5,3615.4,0.1565377]
[1733262962973,0.71411955,3615.5,3615.4,0.1565377]
[1733262963236,3.47997955,3615.5,3614.1,1.5911]
[1733262963434,2.507138,3614.3,3614.2,2.76686]
[1733262964181,2.54794846,3614.3,3614.2,2.76686]
[1733262965677,0.04081046,3614.3,3614.2,2.76686]
[1733262965880,3.861238,3614.7,3614.4,2.76665]
[1733262966107,0.2056145,3614.6,3614.4,2.76665]
[1733262966268,2.507138,3614.7,3614.2,2.76686]
[1733262966471,0.2056772,3614.6,3614.2,2.76686]